bitfinex/quotes_BTCUSD_20250505
["timestamp","ask_amount","ask_price","bid_price","bid_amount"]
[1746472149620,0.04810527,95009.0,95008.0,0.21250778]
[1746472150408,0.54810527,95009.0,95008.0,0.21250778]
[1746472150826,0.51650527,95009.0,95008.0,0.21250778]
[1746472151025,0.51650527,95009.0,95008.0,0.22850778]
[1746472151461,0.51650527,95009.0,95008.0,0.24440778]
[1746472152868,0.01650527,95009.0,95008.0,0.25106104]
[1746472156711,0.00104526,95020.0,95019.0,0.21048421]
[1746472157256,0.00104526,95020.0,95019.0,0.21717241]
[1746472157870,0.00204526,95020.0,95019.0,0.21717241]
[1746472158429,0.00104526,95020.0,95019.0,0.21717241]
[1746472158639,0.00204526,95020.0,95019.0,0.21717241]
[1746472159517,0.00304526,95020.0,95019.0,0.21717241]
[1746472159729,0.01954872,95020.0,95019.0,0.21717241]
[1746472160270,0.01754872,95020.0,95019.0,0.21717241]
[1746472160468,0.01954872,95020.0,95019.0,0.21717241]
[1746472160900,0.01854872,95020.0,95019.0,0.21717241]
[1746472161061,0.51754872,95020.0,95019.0,0.21717241]
[1746472161922,0.51854872,95020.0,95019.0,0.21717241]
[1746472162125,0.51954872,95020.0,95019.0,0.21717241]
[1746472165744,0.51954872,95020.0,95019.0,0.24937241]
[1746472166758,0.00304526,95020.0,95019.0,0.24937241]
[1746472169133,0.00204526,95020.0,95019.0,0.24937241]
[1746472169310,0.00104526,95020.0,95019.0,0.25037241]
[1746472169543,0.00104526,95020.0,95019.0,0.25137241]
[1746472169752,0.00104526,95020.0,95019.0,0.25037241]
[1746472169959,0.00104526,95020.0,95019.0,0.24937241]
[1746472170162,0.00104526,95020.0,95019.0,0.25237241]
[1746472171148,0.01754694,95020.0,95019.0,0.25237241]
[1746472172904,0.01754694,95020.0,95019.0,0.25137241]
[1746472173110,0.01754694,95020.0,95019.0,0.24937241]
[1746472173300,0.01754694,95020.0,95019.0,0.25437241]
[1746472173873,0.01754694,95020.0,95019.0,0.25937241]
[1746472176625,0.00104526,95020.0,95019.0,0.25937241]
[1746472179883,0.00104526,95020.0,95019.0,0.59748839]
[1746472180091,0.001,95069.0,95060.0,0.19987343]
[1746472180312,0.001,95069.0,95068.0,0.21037573]
[1746472180516,0.01634521,95069.0,95068.0,0.21037573]
[1746472180924,0.03284237,95069.0,95068.0,0.21510593]
[1746472181338,0.04094633,95069.0,95068.0,0.21310593]
[1746472181738,0.88094633,95069.0,95068.0,0.21310593]
[1746472182431,0.89215547,95069.0,95068.0,0.21310593]
[1746472185729,0.87685547,95069.0,95068.0,0.21310593]
[1746472186712,0.86035831,95069.0,95068.0,0.21310593]
[1746472191032,0.90805512,95069.0,95068.0,0.21310593]
[1746472191895,0.89265512,95069.0,95068.0,0.21310593]
[1746472192070,0.87685512,95069.0,95068.0,0.21310593]
[1746472200267,0.86035831,95069.0,95068.0,0.21310593]
[1746472202925,0.52035831,95069.0,95068.0,0.21310593]
[1746472203152,0.53685461,95069.0,95068.0,0.24500593]
[1746472203355,0.03685461,95069.0,95068.0,0.24500593]
[1746472203555,0.03685461,95069.0,95068.0,0.21310593]
[1746472207340,0.02035831,95069.0,95068.0,0.21310593]
[1746472207765,0.02035831,95069.0,95068.0,0.0047302]
[1746472207893,0.05245831,95069.0,95068.0,0.21037573]
[1746472208121,0.05245831,95069.0,95068.0,0.21499474]
[1746472209624,0.05245831,95069.0,95068.0,0.00461901]
[1746472209828,0.76283182,95069.0,95068.0,0.00461901]
[1746472210028,0.0321,95068.0,95067.0,0.21037794]
[1746472210455,0.0321,95068.0,95067.0,0.21499836]
[1746472211207,0.0321,95068.0,95067.0,0.00462042]
[1746472211413,0.0321,95068.0,95054.0,0.21040602]
[1746472211414,0.01051978,95059.0,95054.0,0.21040602]
[1746472211615,0.01051945,95062.0,95055.0,0.2104045]
[1746472211616,0.01051967,95060.0,95055.0,0.2104045]
[1746472211807,0.0321,95058.0,95057.0,0.21040007]
[1746472212215,0.04859848,95058.0,95057.0,0.21040007]
[1746472212420,0.01052033,95054.0,95045.0,0.01052133]
[1746472212555,0.01649848,95058.0,95051.0,0.01052066]
[1746472212762,0.01649848,95058.0,95057.0,0.21040007]
[1746472212974,0.01649848,95058.0,95057.0,0.24180007]
[1746472214235,0.01649848,95058.0,95057.0,0.24380007]
[1746472214818,0.01649848,95058.0,95057.0,0.24480007]
[1746472216351,0.01649848,95058.0,95057.0,0.24180007]
[1746472216774,0.01649848,95058.0,95057.0,0.24280007]
[1746472216988,0.01649848,95058.0,95057.0,0.24180007]
[1746472217400,0.01649848,95058.0,95057.0,0.24380007]
[1746472217604,0.01649848,95058.0,95057.0,0.24480007]
[1746472219136,0.01649848,95058.0,95057.0,0.21340007]
[1746472219725,0.01649848,95058.0,95057.0,0.21140007]
[1746472219933,0.51649848,95058.0,95057.0,0.21500768]
[1746472221503,0.5,95058.0,95057.0,0.21500768]
[1746472222585,0.501,95058.0,95057.0,0.21500768]
[1746472224129,0.501,95058.0,95057.0,0.23030768]
[1746472224336,0.51749763,95058.0,95057.0,0.24600768]
[1746472224533,0.51749763,95058.0,95057.0,0.23030768]
[1746472224866,0.51749763,95058.0,95057.0,0.21500768]
[1746472225071,0.51749763,95058.0,95057.0,0.23000768]
[1746472226087,0.51649763,95058.0,95057.0,0.23000768]
[1746472226407,0.51749763,95058.0,95057.0,0.21500768]
[1746472230229,0.501,95058.0,95057.0,0.21500768]
[1746472230773,0.501,95058.0,95057.0,0.00460761]
[1746472230957,0.00539239,95056.0,95055.0,0.21040024]
[1746472231914,0.00639239,95056.0,95055.0,0.21040024]
[1746472232442,0.50639239,95056.0,95055.0,0.21040024]
[1746472236542,0.501,95056.0,95055.0,0.21040024]
[1746472236747,0.841,95056.0,94995.0,0.1638335]
[1746472236986,0.01052055,95052.0,95047.0,0.01052111]
[1746472237143,0.24241351,95051.0,95048.0,0.21041999]
[1746472237346,0.032,95051.0,95048.0,0.01052099]
[1746472237544,0.032,95051.0,95049.0,0.21041656]
[1746472237771,0.0155,95053.0,95051.0,0.21041149]
[1746472238153,0.031,95053.0,95051.0,0.21041149]
[1746472238347,0.25193011,95053.0,95052.0,0.01089314]
[1746472238555,0.25193011,95053.0,95050.0,0.21041467]
[1746472238800,0.04554085,95053.0,95052.0,0.01089314]
[1746472238942,0.3555,95052.0,95051.0,0.01089508]
[1746472239163,0.01052122,95046.0,95043.0,0.21043106]
[1746472239366,0.22094769,95047.0,95044.0,0.21042856]
[1746472239573,0.22094769,95047.0,95044.0,0.22139215]
[1746472239802,0.01052111,95047.0,95045.0,0.21042555]
[1746472239969,0.01052111,95047.0,95044.0,0.22139215]
[1746472240175,0.01052144,95044.0,95040.0,0.21043623]
[1746472240370,0.01052144,95044.0,95042.0,0.21043327]
[1746472240819,0.0162,95045.0,95044.0,0.21042885]
[1746472240997,0.04574085,95045.0,95044.0,0.21042885]
[1746472241407,0.01454085,95045.0,95044.0,0.21042885]
[1746472242030,0.34,95049.0,95048.0,0.21041999]
[1746472242232,0.34,95049.0,95048.0,0.20841999]
[1746472242848,0.01454085,95053.0,95051.0,0.21041197]
[1746472243016,0.01454085,95053.0,95052.0,0.21041114]
[1746472243592,0.01454085,95053.0,95052.0,0.20941114]
[1746472243810,0.34,95054.0,95052.0,0.20941114]
[1746472243811,0.01454085,95054.0,95053.0,0.21040892]
[1746472244021,0.01454085,95054.0,95053.0,0.20940892]
[1746472244710,0.85454085,95054.0,95053.0,0.20940892]
[1746472245938,0.85454085,95054.0,95053.0,0.20240892]
[1746472246891,0.85454085,95054.0,95053.0,0.20135428]
[1746472249993,0.92087692,95054.0,95053.0,0.21230044]
[1746472250129,0.92087692,95054.0,95053.0,0.20135428]
[1746472251304,0.93737609,95054.0,95053.0,0.20135428]
[1746472252156,0.87104002,95054.0,95053.0,0.20135428]
[1746472252359,0.87104002,95054.0,95053.0,0.21230044]
[1746472253013,0.87104002,95054.0,95053.0,0.20530044]
[1746472256278,0.85649917,95054.0,95053.0,0.20530044]
[1746472256497,0.85649917,95054.0,95053.0,0.23730044]
[1746472257759,0.96201946,95054.0,95053.0,0.22090044]
[1746472257912,0.96201946,95054.0,95053.0,0.20530044]
[1746472258913,0.96201946,95054.0,95053.0,0.22170044]
[1746472259118,0.96201946,95054.0,95053.0,0.23740044]
[1746472259343,0.85649917,95054.0,95053.0,0.23740044]
[1746472259769,0.85649917,95054.0,95053.0,0.22170044]
[1746472259978,0.85649917,95054.0,95053.0,0.23030044]
[1746472260169,0.85649917,95054.0,95053.0,0.21470044]
[1746472260374,0.84,95054.0,95053.0,0.19830044]
[1746472261646,0.84,95054.0,95053.0,0.22900044]
[1746472262055,0.84,95054.0,95053.0,0.21370044]
[1746472262259,0.84,95054.0,95053.0,0.19830044]
[1746472262623,0.84,95054.0,95053.0,0.23030044]
[1746472263033,0.5,95054.0,95053.0,0.23030044]
[1746472263243,0.51649813,95054.0,95053.0,0.23030044]
[1746472264121,0.01649813,95054.0,95053.0,0.23030044]
[1746472265144,0.01649813,95054.0,95053.0,0.23130044]
[1746472265509,0.01649813,95054.0,95053.0,0.23030044]
[1746472265711,0.01649813,95054.0,95053.0,0.23330044]
[1746472266309,0.03624601,95054.0,95053.0,0.23330044]
[1746472266945,0.01974788,95054.0,95053.0,0.23224583]
[1746472270530,0.03624645,95054.0,95053.0,0.23224583]
[1746472274205,0.03624645,95054.0,95053.0,0.20024583]
[1746472275077,0.03624645,95054.0,95053.0,0.21594583]
[1746472275243,0.53624645,95054.0,95053.0,0.21394583]
[1746472275635,0.53624645,95054.0,95053.0,0.21294583]
[1746472276618,0.53624645,95054.0,95053.0,0.22834583]
[1746472276791,0.53624645,95054.0,95053.0,0.22506271]
[1746472276996,0.51974788,95054.0,95053.0,0.22506271]
[1746472280015,0.53624596,95054.0,95053.0,0.22506271]
[1746472280251,0.51974788,95054.0,95053.0,0.22506271]
[1746472280426,0.53624605,95054.0,95053.0,0.22506271]
[1746472286856,0.51974788,95054.0,95053.0,0.20966271]
[1746472287287,0.51974788,95054.0,95053.0,0.19396271]
[1746472288829,0.51974788,95054.0,95053.0,0.19496271]
[1746472289025,1.07015459,95054.0,95053.0,0.01194616]
[1746472289412,0.85974788,95054.0,95053.0,0.01194616]
[1746472290271,1.07015459,95054.0,95053.0,0.01194616]
[1746472290476,1.17567488,95054.0,95053.0,0.001]
[1746472290679,1.17567488,95054.0,95038.0,0.0105221]
[1746472290680,0.01052155,95043.0,95038.0,0.0105221]
[1746472290880,0.22095404,95043.0,95038.0,0.0105221]
[1746472291106,0.22095008,95045.0,95040.0,0.22095948]
[1746472291315,0.01974788,95044.0,95041.0,0.01097142]
[1746472291562,0.01650057,95042.0,95041.0,0.22140691]
[1746472291798,0.01650057,95042.0,95041.0,0.01097142]
[1746472291998,0.22693385,95042.0,95041.0,0.01097142]
[1746472292199,0.23745551,95042.0,95038.0,0.0105221]
[1746472292405,0.23018392,95041.0,95037.0,0.22096452]
[1746472292535,0.21043777,95040.0,95037.0,0.01052221]
[1746472292738,0.21043777,95040.0,95038.0,0.01097723]
[1746472292941,0.01974788,95039.0,95038.0,0.22141936]
[1746472293142,0.01974788,95039.0,95038.0,0.21044213]
[1746472293328,0.01974788,95039.0,95038.0,0.22141936]
[1746472293730,0.51979307,95039.0,95038.0,0.22141936]
[1746472294408,0.51979307,95039.0,95038.0,0.22241936]
[1746472294551,0.51979307,95039.0,95038.0,0.22141936]
[1746472294752,0.51979307,95039.0,95038.0,0.22241936]
[1746472294977,0.51979307,95039.0,95038.0,0.22341936]
[1746472296837,0.51979307,95039.0,95038.0,0.25431936]
[1746472299365,0.01979307,95039.0,95038.0,0.25431936]
[1746472300069,0.03629325,95039.0,95038.0,0.25431936]
[1746472310281,0.01979307,95039.0,95038.0,0.25431936]
[1746472313247,0.03629243,95039.0,95038.0,0.25431936]
[1746472316297,0.01979307,95039.0,95038.0,0.25431936]
[1746472319881,0.03629248,95039.0,95038.0,0.25431936]
[1746472326707,0.03629248,95039.0,95038.0,0.22341936]
[1746472327364,0.03629248,95039.0,95038.0,0.25551936]
[1746472327583,0.0165446,95039.0,95038.0,0.25551936]
[1746472338301,0.0165446,95039.0,95038.0,0.22341936]
[1746472339819,0.03631291,95039.0,95038.0,0.22341936]
[1746472340384,0.0198135,95039.0,95038.0,0.22341936]
[1746472340516,4.519e-05,95039.0,95038.0,0.22341936]
[1746472341675,0.0198152,95039.0,95038.0,0.22341936]
[1746472343423,0.03631466,95039.0,95038.0,0.22341936]
[1746472345565,0.03631466,95039.0,95038.0,0.25361936]
[1746472346311,4.519e-05,95039.0,95038.0,0.25361936]
[1746472346725,4.519e-05,95039.0,95038.0,0.25261936]
[1746472346924,4.519e-05,95039.0,95038.0,0.26329044]
[1746472347305,4.519e-05,95039.0,95038.0,0.26229044]
[1746472347506,4.519e-05,95039.0,95038.0,0.26629044]
[1746472347714,4.519e-05,95039.0,95038.0,0.27129044]
[1746472349175,4.519e-05,95039.0,95038.0,0.31867071]
[1746472349986,0.01649639,95054.0,95053.0,0.21040892]
[1746472350281,0.01654157,95054.0,95053.0,0.25480745]
[1746472350482,0.01654157,95054.0,95053.0,0.25270377]
[1746472350675,0.01654157,95054.0,95053.0,0.25000505]
[1746472351102,0.01654157,95054.0,95053.0,0.25300505]
[1746472351667,0.01654157,95054.0,95053.0,0.25000505]
[1746472352026,0.01654157,95054.0,95053.0,0.25400505]
[1746472352893,0.01654157,95054.0,95053.0,0.25900505]
[1746472359791,4.518e-05,95054.0,95053.0,0.25900505]
[1746472388599,4.518e-05,95054.0,95053.0,0.22750505]
[1746472389662,0.03064518,95054.0,95053.0,0.22750505]
[1746472390310,0.03064518,95054.0,95053.0,0.22530255]
[1746472390542,0.03064518,95054.0,95053.0,0.22030255]
[1746472390726,0.04714127,95054.0,95053.0,0.22030255]
[1746472390951,0.04714127,95054.0,95053.0,0.22330255]
[1746472391099,0.04714127,95054.0,95053.0,0.21630255]
[1746472391441,0.04714127,95054.0,95053.0,0.22130255]
[1746472391787,0.04714127,95054.0,95053.0,0.21930255]
[1746472392002,0.06689095,95054.0,95053.0,0.21930255]
[1746472392203,0.06689095,95054.0,95053.0,0.22130255]
[1746472392765,0.04714127,95054.0,95053.0,0.22130255]
[1746472393540,0.01654127,95054.0,95053.0,0.22130255]
[1746472399406,0.03204127,95054.0,95053.0,0.22130255]
[1746472399621,0.01554518,95054.0,95053.0,0.22130255]
[1746472399833,4.518e-05,95054.0,95053.0,0.22130255]
[1746472400250,4.518e-05,95054.0,95053.0,0.22332518]
[1746472402453,0.01654128,95054.0,95053.0,0.22332518]
[1746472402883,0.04834128,95054.0,95053.0,0.22332518]
[1746472403736,0.04834128,95054.0,95053.0,0.21832518]
[1746472403933,0.04834128,95054.0,95053.0,0.22132518]
[1746472404400,0.04834128,95054.0,95053.0,0.22032518]
[1746472404758,0.04834128,95054.0,95053.0,0.22132518]
[1746472406789,0.03184518,95054.0,95053.0,0.22132518]
[1746472407447,0.03184518,95054.0,95053.0,0.22032518]
[1746472407829,0.03184518,95054.0,95053.0,0.21832518]
[1746472408073,0.03184518,95054.0,95053.0,0.21932518]
[1746472409067,0.24225189,95054.0,95053.0,0.00891626]
[1746472409278,0.08001967,95054.0,95053.0,0.00891626]
[1746472409477,0.08001967,95054.0,95053.0,0.001]
[1746472409676,0.59651788,95054.0,95053.0,0.21817514]
[1746472409877,0.59651788,95054.0,95053.0,0.21040892]
[1746472410111,0.59651788,95054.0,95053.0,0.21717514]
[1746472410710,0.61624249,95054.0,95053.0,0.21717514]
[1746472412667,0.568068,95054.0,95053.0,0.21717514]
[1746472418564,0.536268,95054.0,95053.0,0.21717514]
[1746472419364,0.536268,95054.0,95053.0,0.24987514]
[1746472419579,0.51976979,95054.0,95053.0,0.24987514]
[1746472419731,0.01976979,95054.0,95053.0,0.24987514]
[1746472421031,0.01976979,95054.0,95053.0,0.23347514]
[1746472421237,0.01976979,95054.0,95053.0,0.21717514]
[1746472422682,0.03626685,95054.0,95053.0,0.21717514]
[1746472423313,0.03626685,95054.0,95053.0,0.21817514]
[1746472426532,0.01976979,95054.0,95053.0,0.21817514]
[1746472430531,0.0362669,95054.0,95053.0,0.21817514]
[1746472442732,0.01976979,95054.0,95053.0,0.21817514]
[1746472444851,4.518e-05,95054.0,95053.0,0.21817514]
[1746472445757,0.01654239,95054.0,95053.0,0.21817514]
[1746472445974,0.01654239,95054.0,95053.0,0.24917514]
[1746472447530,0.01654239,95054.0,95053.0,0.25017514]
[1746472448641,0.01654239,95054.0,95053.0,0.23347514]
[1746472448835,0.01654239,95054.0,95053.0,0.23547514]
[1746472449276,0.0363056,95054.0,95053.0,0.23547514]
[1746472450586,0.01980839,95054.0,95053.0,0.23547514]
[1746472451124,4.518e-05,95054.0,95053.0,0.23547514]
[1746472451519,4.518e-05,95054.0,95053.0,0.25077514]
[1746472453134,4.518e-05,95054.0,95053.0,0.24877514]
[1746472453467,4.518e-05,95054.0,95053.0,0.25177514]
[1746472453634,0.01654087,95054.0,95053.0,0.25077514]
[1746472453842,0.01654087,95054.0,95053.0,0.25277514]
[1746472454438,0.01654087,95054.0,95053.0,0.25077514]
[1746472454640,0.01654087,95054.0,95053.0,0.24977514]
[1746472454842,0.01654087,95054.0,95053.0,0.25277514]
[1746472456576,4.518e-05,95054.0,95053.0,0.25277514]
[1746472461066,0.01654084,95054.0,95053.0,0.25277514]
[1746472462058,0.01654084,95054.0,95053.0,0.25077514]
[1746472462258,0.01654084,95054.0,95053.0,0.24777514]
[1746472462601,0.01654084,95054.0,95053.0,0.25177514]
[1746472463318,0.01654084,95054.0,95053.0,0.25477514]
[1746472463799,0.01654084,95054.0,95053.0,0.25077514]
[1746472463949,0.01654084,95054.0,95053.0,0.24777514]
[1746472464159,0.01654084,95054.0,95053.0,0.25177514]
[1746472464531,0.01654084,95054.0,95053.0,0.25677514]
[1746472466946,4.518e-05,95054.0,95053.0,0.25677514]
[1746472469900,0.01654048,95054.0,95053.0,0.25677514]
[1746472473324,0.03628281,95054.0,95053.0,0.25677514]
[1746472480068,0.01978751,95054.0,95053.0,0.25677514]
[1746472482439,0.01978751,95054.0,95053.0,0.22617514]
[1746472483084,0.03628363,95054.0,95053.0,0.22617514]
[1746472483286,0.03628363,95054.0,95053.0,0.22217514]
[1746472483502,0.03628363,95054.0,95053.0,0.23457514]
[1746472483754,0.03628363,95054.0,95053.0,0.23757514]
[1746472484865,0.03628363,95054.0,95053.0,0.22217514]
[1746472486664,0.01978751,95054.0,95053.0,0.22217514]
[1746472486824,0.01978751,95054.0,95053.0,0.22017514]
[1746472487020,0.51978751,95054.0,95053.0,0.22017514]
[1746472487262,0.51978751,95054.0,95053.0,0.22117514]
[1746472487584,0.51978751,95054.0,95053.0,0.21817514]
[1746472487780,0.51978751,95054.0,95053.0,0.21917514]
[1746472488547,0.57365167,95054.0,95053.0,0.21817514]
[1746472488803,0.60535167,95054.0,95053.0,0.21817514]
[1746472489656,0.62184846,95054.0,95053.0,0.21717514]
[1746472489907,0.62184846,95054.0,95053.0,0.21817514]
[1746472490107,0.62184846,95054.0,95053.0,0.00776622]
[1746472490715,1.18679602,95054.0,95053.0,0.00676622]
[1746472491171,0.0316,95047.0,95046.0,0.21042428]
[1746472491346,0.01052099,95048.0,95044.0,0.21042751]
[1746472491574,0.0316,95047.0,95046.0,0.00678199]
[1746472491733,0.01974233,95047.0,95046.0,0.21042442]
[1746472491938,0.05134233,95047.0,95046.0,0.21720641]
[1746472492204,0.55134233,95047.0,95046.0,0.21720641]
[1746472492781,0.55134233,95047.0,95046.0,0.21820641]
[1746472502330,0.51974233,95047.0,95046.0,0.23360641]
[1746472502536,0.51974233,95047.0,95046.0,0.24940641]
[1746472502962,0.01974233,95047.0,95046.0,0.24940641]
[1746472503166,0.03624067,95047.0,95046.0,0.24940641]
[1746472504423,0.03624067,95047.0,95046.0,0.25040641]
[1746472504791,0.03624067,95047.0,95046.0,0.24940641]
[1746472505202,0.03624067,95047.0,95046.0,0.25140641]
[1746472508391,0.03624067,95047.0,95046.0,0.24840641]
[1746472508521,0.03624067,95047.0,95046.0,0.24940641]
[1746472508728,0.03624067,95047.0,95046.0,0.25240641]
[1746472509015,0.03624067,95047.0,95046.0,0.25140641]
[1746472510453,0.01974233,95047.0,95046.0,0.25340641]
[1746472511875,0.01974233,95047.0,95046.0,0.24840641]
[1746472512414,0.01974233,95047.0,95046.0,0.25540641]
[1746472513476,0.03623953,95047.0,95046.0,0.25540641]
[1746472514340,0.03623953,95047.0,95046.0,0.25240641]
[1746472514577,0.03623953,95047.0,95046.0,0.24840641]
[1746472514777,0.03623953,95047.0,95046.0,0.25140641]
[1746472514988,0.03623953,95047.0,95046.0,0.25540641]
[1746472515214,0.03623953,95047.0,95046.0,0.25240641]
[1746472515530,0.03623953,95047.0,95046.0,0.25540641]
[1746472515743,0.03623953,95047.0,95046.0,0.25140641]
[1746472515915,0.03623953,95047.0,95046.0,0.25540641]
[1746472516426,0.03623953,95047.0,95046.0,0.25240641]
[1746472517866,0.03623953,95047.0,95046.0,0.25540641]
[1746472518163,0.03623953,95047.0,95046.0,0.25140641]
[1746472518390,0.03623953,95047.0,95046.0,0.25240641]
[1746472518593,0.03623953,95047.0,95046.0,0.25540641]
[1746472523041,0.0164972,95047.0,95046.0,0.25540641]
[1746472523807,0.0164972,95047.0,95046.0,0.25140641]
[1746472523936,0.0164972,95047.0,95046.0,0.25740641]
[1746472524370,0.0164972,95047.0,95046.0,0.25440641]
[1746472524633,0.0164972,95047.0,95046.0,0.25840641]
[1746472525184,0.0164972,95047.0,95046.0,0.25440641]
[1746472525400,0.0164972,95047.0,95046.0,0.26040641]
[1746472526333,4.518e-05,95054.0,95046.0,0.26040641]
[1746472526334,4.518e-05,95054.0,95053.0,0.21040892]
[1746472526483,4.518e-05,95054.0,95053.0,0.24401261]
[1746472526683,4.518e-05,95054.0,95053.0,0.2485917]
[1746472527938,4.518e-05,95054.0,95053.0,0.2525917]
[1746472528259,4.518e-05,95054.0,95053.0,0.2575917]
[1746472529910,0.001,95069.0,95068.0,0.21037573]
[1746472530112,0.001,95089.0,95088.0,0.21033148]
[1746472530314,0.00104519,95089.0,95088.0,0.24183148]
[1746472530727,0.00104519,95089.0,95088.0,0.24668753]
[1746472532235,0.00104519,95089.0,95088.0,0.21518753]
[1746472532835,0.00104519,95089.0,95088.0,0.24668753]
[1746472534180,0.0175363,95089.0,95088.0,0.24668753]
[1746472534685,0.0175363,95089.0,95088.0,0.24768753]
[1746472535878,0.0175363,95089.0,95088.0,0.24968753]
[1746472536559,0.00104519,95089.0,95088.0,0.24968753]
[1746472537865,0.00104519,95089.0,95088.0,0.60059793]
[1746472538287,0.00104519,95089.0,95088.0,0.59959793]
[1746472538575,0.00104519,95089.0,95088.0,0.60259793]
[1746472538800,0.00104519,95089.0,95088.0,0.60059793]
[1746472539005,0.00104519,95089.0,95088.0,0.60759793]
[1746472539794,0.00104519,95089.0,95088.0,0.60459793]
[1746472540083,0.00104519,95089.0,95088.0,0.61059793]
[1746472543253,0.00104519,95089.0,95088.0,0.60359793]
[1746472543406,0.00104519,95089.0,95088.0,0.59759793]
[1746472543607,0.01648704,95105.0,95099.0,0.21030715]
[1746472543809,0.00204517,95100.0,95099.0,0.24340971]
[1746472544068,0.00204517,95100.0,95099.0,0.24579772]
[1746472544625,0.00204517,95100.0,95099.0,0.24979772]
[1746472546369,0.00204517,95100.0,95099.0,0.25479772]
[1746472558817,0.00204517,95100.0,95099.0,0.23949772]
[1746472559307,0.00204517,95100.0,95099.0,0.25589772]
[1746472560596,0.02174983,95100.0,95099.0,0.25589772]
[1746472563522,0.00204517,95100.0,95099.0,0.25589772]
[1746472564962,0.01648704,95105.0,95104.0,0.21029609]
[1746472565260,0.03620605,95105.0,95104.0,0.21687198]
[1746472565438,0.03620605,95105.0,95104.0,0.21476942]
[1746472566198,0.03620605,95105.0,95104.0,0.21876942]
[1746472566402,0.03620605,95105.0,95104.0,0.25016942]
[1746472566683,0.01971901,95105.0,95104.0,0.25316942]
[1746472566900,0.6973,95138.0,95104.0,0.04287333]
[1746472567105,0.00104518,95129.0,95128.0,0.21024304]
[1746472567526,0.00104518,95129.0,95128.0,0.21456868]
[1746472568227,0.01185491,95129.0,95128.0,0.21456868]
[1746472568567,0.01185491,95129.0,95128.0,0.16667817]
[1746472568772,0.01185491,95129.0,95128.0,0.16867817]
[1746472568976,0.01185491,95129.0,95128.0,0.16967817]
[1746472570301,0.01176235,95129.0,95128.0,0.16967817]
[1746472570501,0.02824651,95129.0,95128.0,0.16967817]
[1746472575925,0.05924651,95129.0,95128.0,0.16967817]
[1746472576959,0.05924651,95129.0,95128.0,0.00732564]
[1746472577130,0.28402819,95129.0,95128.0,0.003]
[1746472577335,0.0573032,95129.0,95128.0,0.003]
[1746472577557,0.01454085,95128.0,95125.0,0.21024955]
[1746472577757,0.0304,95126.0,95125.0,0.21024955]
[1746472578133,0.21024958,95126.0,95119.0,0.01051314]
[1746472578339,0.0166,95124.0,95121.0,0.2102569]
[1746472578544,0.0327,95123.0,95122.0,0.21025621]
[1746472578739,0.0105138,95113.0,95105.0,0.01051469]
[1746472579076,0.0321,95110.0,95108.0,0.01051436]
[1746472579278,0.01971784,95112.0,95109.0,0.22079879]
[1746472579547,0.02505399,95119.0,95112.0,0.01051392]
[1746472579720,0.02505399,95119.0,95117.0,0.21026726]
[1746472579920,0.04664085,95118.0,95117.0,0.21026726]
[1746472580147,0.06635551,95118.0,95117.0,0.21026726]
[1746472580822,0.04594085,95117.0,95116.0,0.20926902]
[1746472581122,0.06565551,95117.0,95116.0,0.20926902]
[1746472582079,0.56565551,95117.0,95116.0,0.20926902]
[1746472582282,0.56665551,95117.0,95116.0,0.20926902]
[1746472583400,0.56963058,95117.0,95116.0,0.20926902]
[1746472583901,0.0323,95116.0,95115.0,0.21027167]
[1746472584351,0.05201466,95116.0,95115.0,0.21027167]
[1746472584946,0.55201466,95116.0,95115.0,0.21027167]
[1746472585151,0.55301466,95116.0,95115.0,0.21027167]
[1746472587415,0.52071466,95116.0,95115.0,0.21027167]
[1746472587613,0.501,95116.0,95115.0,0.21027167]
[1746472587818,0.5322,95116.0,95115.0,0.21027167]
[1746472588918,0.55189185,95116.0,95115.0,0.21027167]
[1746472589873,0.56837941,95116.0,95115.0,0.21027167]
[1746472592721,0.54868756,95116.0,95115.0,0.21027167]
[1746472595068,0.54868756,95116.0,95115.0,0.21471281]
[1746472595274,0.51748756,95116.0,95115.0,0.21471281]
[1746472596912,0.54958756,95116.0,95115.0,0.21471291]
[1746472597297,0.5331,95116.0,95115.0,0.21471291]
[1746472599258,0.5331,95116.0,95115.0,0.00444114]
[1746472599471,0.01051403,95111.0,95107.0,0.21028745]
[1746472599612,0.22080234,95108.0,95103.0,0.22081234]
[1746472599835,0.0166,95108.0,95103.0,0.01051491]
[1746472600040,0.0321,95108.0,95106.0,0.01051458]
[1746472600245,0.0321,95108.0,95084.0,0.31551018]
[1746472600246,0.03629662,95107.0,95100.0,0.22082012]
[1746472600446,0.03629662,95107.0,95102.0,0.21029878]
[1746472600648,0.0166,95106.0,95104.0,0.22081013]
[1746472600850,0.04664085,95105.0,95103.0,0.001]
[1746472601084,0.06633747,95104.0,95103.0,0.001]
[1746472603057,0.03423747,95104.0,95103.0,0.001]
[1746472603556,0.06633747,95104.0,95103.0,0.003]
[1746472603761,0.56633747,95104.0,95103.0,0.003]
[1746472604161,1.26363747,95104.0,95103.0,0.003]
[1746472605979,1.26363747,95104.0,95103.0,0.00650365]
[1746472606540,1.60363747,95104.0,95103.0,0.00650365]
[1746472606741,1.70915776,95104.0,95103.0,0.00650365]
[1746472606917,0.01454085,95089.0,95085.0,0.22085303]
[1746472607116,0.01454085,95089.0,95087.0,0.2103334]
[1746472607336,0.01051646,95089.0,95088.0,0.00411661]
[1746472607547,0.01454085,95089.0,95087.0,0.21033338]
[1746472607744,0.05209662,95088.0,95087.0,0.21033338]
[1746472607948,0.01454085,95087.0,95077.0,0.21035541]
[1746472608173,0.01454085,95085.0,95073.0,0.01051823]
[1746472608374,0.0162,95080.0,95079.0,0.21035112]
[1746472608590,0.03589662,95080.0,95079.0,0.21035112]
[1746472608734,0.01969662,95080.0,95079.0,0.21035112]
[1746472608933,0.03618891,95080.0,95079.0,0.21035112]
[1746472609549,0.04703424,95080.0,95079.0,0.21035112]
[1746472610171,0.04703424,95080.0,95079.0,0.21135112]
[1746472610571,0.54703424,95080.0,95079.0,0.21335112]
[1746472614465,0.54703424,95080.0,95079.0,0.21748514]
[1746472615119,0.60250847,95080.0,95079.0,0.21748514]
[1746472615702,0.54703424,95080.0,95079.0,0.21748514]
[1746472616735,0.53054195,95080.0,95079.0,0.21748514]
[1746472619596,0.75543197,95080.0,95079.0,0.00713402]
[1746472619799,0.56157556,95080.0,95079.0,0.00713402]
[1746472620093,0.80272473,95080.0,95079.0,0.00713402]
[1746472620302,1.14272473,95080.0,95079.0,0.00713402]
[1746472620759,1.14272473,95080.0,95079.0,0.001]
[1746472620932,1.14272473,95080.0,95079.0,0.00622277]
[1746472621108,1.14272473,95080.0,95079.0,0.001]
[1746472621327,1.24824502,95080.0,95079.0,0.001]
[1746472623562,1.24824502,95080.0,95079.0,0.00522277]
[1746472624192,1.14272473,95080.0,95079.0,0.00522277]
[1746472625089,1.14272473,95080.0,95079.0,0.001]
[1746472625315,1.84002473,95080.0,95079.0,0.001]
[1746472625692,1.82353197,95080.0,95079.0,0.001]
[1746472627942,0.01454085,95058.0,95051.0,0.21141299]
[1746472628147,0.01454085,95056.0,95051.0,0.00104519]
[1746472628366,0.01454085,95056.0,95052.0,0.0045525]